bitfinex/quotes_ETHUSD_20250505
["timestamp","ask_amount","ask_price","bid_price","bid_amount"]
[1746488103325,0.7884,1828.1,1827.8,5.47086863]
[1746488105649,0.84305333,1828.1,1827.8,5.47086863]
[1746488105845,6.31323491,1828.1,1827.8,5.47086863]
[1746488108851,5.47055093,1828.0,1827.7,4.559]
[1746488109048,7.11972265,1828.0,1827.7,4.559]
[1746488110114,7.17437598,1828.0,1827.6,5.4714349]
[1746488110410,5.52520426,1828.0,1827.6,5.4714349]
[1746488110614,0.7744,1827.9,1827.6,5.4714349]
[1746488113054,0.7744,1827.9,1827.6,10.94288845]
[1746488113359,0.7744,1827.9,1827.6,5.4714349]
[1746488114761,0.7744,1827.9,1827.6,10.94299361]
[1746488114925,0.7744,1827.9,1827.7,5.47132664]
[1746488115554,7.8944495,1827.9,1827.5,6.25002324]
[1746488115757,1.70382505,1827.8,1827.4,10.02805743]
[1746488115942,1.70382505,1827.8,1827.5,5.47194864]
[1746488116167,0.05465333,1827.8,1827.5,5.47194864]
[1746488117567,5.52580231,1827.8,1827.4,10.02805743]
[1746488118238,0.7797,1827.7,1827.4,10.02805743]
[1746488119543,0.7797,1827.7,1827.5,5.47192378]
[1746488120265,0.7797,1827.7,1827.4,10.02805743]
[1746488120568,0.7797,1827.7,1827.5,5.47194174]
[1746488121868,0.7797,1827.7,1827.5,10.94374107]
[1746488122055,0.7797,1827.7,1827.5,5.47179933]
[1746488122259,1.24412998,1827.9,1827.6,5.47165681]
[1746488122446,1.96525653,1827.9,1827.6,5.47146778]
[1746488123563,1.55007988,1827.9,1827.4,5.3804]
[1746488123740,0.7743,1827.7,1827.4,15.5001432]
[1746488123926,0.82895333,1827.7,1827.4,15.5001432]
[1746488124569,0.82895333,1827.7,1827.5,5.47193952]
[1746488124968,0.7743,1827.7,1827.5,5.47177431]
[1746488125274,0.82895333,1827.9,1827.7,5.47123266]
[1746488126578,0.05465333,1827.9,1827.8,5.4710581]
[1746488126740,4.46396539,1828.0,1827.8,5.4710581]
[1746488126939,3.71076539,1828.0,1827.8,5.4710581]
[1746488127753,3.71076539,1828.0,1827.7,5.47115803]
[1746488128272,0.05465333,1828.0,1827.7,5.47115803]
[1746488128475,1.05480657,1828.0,1827.7,5.47115803]
[1746488129675,1.05480657,1828.0,1827.8,5.47104553]
[1746488129879,0.05465333,1828.0,1827.8,5.47104553]
[1746488130382,0.05465333,1828.0,1827.7,5.47122459]
[1746488131657,0.05465333,1828.0,1827.7,5.47116315]
[1746488131865,0.05465333,1828.0,1827.6,6.24199069]
[1746488132042,0.05465333,1828.0,1827.8,5.47105801]
[1746488132890,0.04820713,1828.0,1827.8,5.47105801]
[1746488134186,3.70431919,1828.1,1827.8,1.09422164]
[1746488134406,3.65611206,1828.1,1828.0,5.47045951]
[1746488134558,3.65611206,1828.1,1828.0,6.26235951]
[1746488135492,3.65611206,1828.2,1828.1,5.47016027]
[1746488135686,3.65611206,1828.2,1828.1,10.81506027]
[1746488135989,3.65611206,1828.2,1828.1,12.44361225]
[1746488136695,3.65611206,1828.2,1828.1,11.65171225]
[1746488137581,3.65611206,1828.2,1828.1,6.18155198]
[1746488138995,3.65611206,1828.2,1828.1,4.553]
[1746488140188,0.04820713,1828.3,1828.1,4.553]
[1746488141687,6.322587,1828.4,1828.1,4.553]
[1746488143185,5.46959744,1828.3,1828.1,4.553]
[1746488143384,0.04820713,1828.2,1828.1,4.553]
[1746488143692,1.38098759,1828.2,1827.8,0.7798]
[1746488143883,6.29917787,1828.2,1827.9,4.552]
[1746488144488,0.82920713,1828.2,1827.9,10.02274776]
[1746488150988,6.29906836,1828.2,1827.9,10.02274776]
[1746488152200,0.82920713,1828.2,1827.9,10.02274776]
[1746488158005,0.82920713,1828.2,1827.9,10.02254643]
[1746488158174,0.82920713,1828.2,1827.9,15.49308689]
[1746488158603,0.82920713,1828.2,1827.9,10.02254046]
[1746488159505,6.29907265,1828.2,1827.9,10.02254046]
[1746488159687,0.82920713,1828.2,1827.9,10.02254046]
[1746488159894,6.29914487,1828.2,1827.9,10.02254046]
[1746488161489,6.29914487,1828.2,1827.9,10.02274792]
[1746488161671,6.29914487,1828.2,1827.9,10.022749]
[1746488162506,0.82920713,1828.2,1827.9,10.022749]
[1746488162807,0.82920713,1828.2,1827.9,15.493332]
[1746488163005,0.82920713,1828.2,1827.9,10.022583]
[1746488165089,6.29908375,1828.2,1827.9,10.022583]
[1746488165289,7.70706857,1828.2,1827.9,10.022583]
[1746488166085,7.70706857,1828.2,1827.9,5.470583]
[1746488167014,2.23719195,1828.2,1827.9,5.470583]
[1746488167214,0.82920713,1828.2,1827.9,5.470583]
[1746488167605,6.29908011,1828.2,1827.9,5.470583]
[1746488167816,0.82920713,1828.2,1827.9,5.470583]
[1746488170422,0.04820713,1828.2,1827.9,5.470583]
[1746488170729,0.04820713,1828.2,1827.9,5.47053422]
[1746488175344,10.69774352,1828.3,1827.9,5.47053422]
[1746488175535,12.21183908,1828.3,1827.9,5.47053422]
[1746488175748,6.74204171,1828.3,1827.9,5.47053422]
[1746488176021,15.86795114,1828.3,1827.9,5.47053422]
[1746488176396,10.39815377,1828.3,1827.9,5.47053422]
[1746488176745,15.86796055,1828.3,1827.9,5.47053422]
[1746488177636,10.39815377,1828.3,1827.9,5.47053422]
[1746488178132,15.8679992,1828.3,1827.9,5.47053422]
[1746488178327,15.86799808,1828.3,1827.9,5.47053422]
[1746488178488,10.39815377,1828.3,1827.9,5.47053422]
[1746488178899,3.65611206,1828.3,1828.2,5.46986106]
[1746488182853,3.65611206,1828.3,1828.2,6.25236106]
[1746488183157,15.36529668,1828.6,1828.2,6.25236106]
[1746488183310,9.89639641,1828.6,1828.2,6.25236106]
[1746488186012,15.36529892,1828.6,1828.2,6.25236106]
[1746488186212,5.46898997,1828.5,1828.2,0.7825]
[1746488186513,5.47051384,1828.0,1827.8,4.55]
[1746488188036,6.26861384,1828.0,1827.8,4.55]
[1746488188618,5.47075879,1827.9,1827.8,4.55]
[1746488189636,5.47075879,1827.9,1827.5,10.02175482]
[1746488189832,0.7981,1828.0,1827.5,4.55]
[1746488190035,5.4713695,1827.7,1827.5,4.55]
[1746488191548,6.27391157,1827.8,1827.5,4.55]
[1746488191752,0.8027,1827.8,1827.5,4.55]
[1746488191928,0.8027,1827.8,1827.5,10.02190929]
[1746488193453,5.47057632,1828.0,1827.6,5.47143782]
[1746488193660,10.94130005,1828.0,1827.6,5.47143782]
[1746488194158,6.24476296,1827.9,1827.5,10.85389864]
[1746488195653,0.774,1827.9,1827.5,10.85385642]
[1746488195861,0.774,1827.9,1827.6,5.47159714]
[1746488200521,6.24478,1827.9,1827.5,10.85386404]
[1746488200725,6.24478,1827.9,1827.6,5.47164565]
[1746488201168,0.774,1827.9,1827.6,5.47164565]
[1746488201659,5.47065526,1828.0,1827.6,5.47151172]
[1746488201958,7.05431628,1828.0,1827.6,5.47151172]
[1746488202560,9.94827662,1828.1,1827.7,5.47131549]
[1746488202776,9.94827662,1828.1,1827.8,6.28513789]
[1746488202777,4.47801206,1828.1,1827.8,6.28513789]
[1746488204558,0.8219,1828.1,1827.8,6.28513789]
[1746488204863,14.66211206,1828.2,1827.9,5.4707572]
[1746488205435,20.13200949,1828.2,1827.8,6.28495531]
[1746488205635,17.2222809,1828.2,1827.9,5.47058412]
[1746488205954,16.4562809,1828.2,1827.9,5.47058412]
[1746488208259,8.5338023,1828.3,1827.9,5.47058412]
[1746488208878,0.8055,1828.2,1827.9,5.47058412]
[1746488211784,6.27540462,1828.2,1827.8,6.23187698]
[1746488214646,6.27540462,1828.2,1827.8,11.70271993]
[1746488216477,0.8055,1828.2,1827.9,5.47073926]
[1746488216682,0.8055,1828.2,1827.9,5.47057367]
[1746488216977,9.93715221,1828.4,1828.0,5.47043811]
[1746488217183,4.46771206,1828.4,1828.1,5.47002223]
[1746488217602,4.46771206,1828.4,1828.0,6.22833051]
[1746488217815,9.93710222,1828.4,1828.0,6.22833051]
[1746488218102,3.65611206,1828.3,1828.0,7.97004927]
[1746488218888,9.12570799,1828.3,1828.0,2.49981876]
[1746488219201,5.4698644,1828.2,1827.9,10.01873821]
[1746488219704,3.65611206,1828.3,1827.9,10.01873821]
[1746488219705,9.12586314,1828.3,1827.9,10.01873821]
[1746488220003,14.59566285,1828.3,1827.9,10.01873821]
[1746488220296,14.59569622,1828.3,1827.9,10.01873821]
[1746488220481,0.8116,1828.2,1827.9,10.01873821]
[1746488224417,6.28149594,1828.2,1827.9,4.548]
[1746488225021,6.28149594,1828.2,1827.9,10.01871045]
[1746488225883,0.8116,1828.2,1827.9,10.01871045]
[1746488226899,0.7964,1828.3,1828.0,5.47043199]
[1746488227478,6.26600905,1828.3,1827.9,11.64332541]
[1746488230480,6.26600905,1828.3,1827.9,10.01855792]
[1746488231511,5.46987595,1828.2,1827.9,10.01855792]
[1746488233015,6.26600905,1828.3,1827.9,10.01855792]
[1746488233229,5.46960905,1828.3,1827.9,10.01853463]
[1746488234925,10.93942755,1828.3,1827.9,10.01853463]
[1746488235127,5.46960905,1828.3,1827.9,10.01853463]
[1746488236923,5.46990896,1828.2,1827.9,10.01853463]
[1746488237129,7.78130053,1828.1,1827.9,4.548]
[1746488237295,2.31102341,1828.1,1827.9,4.548]
[1746488237498,6.29792259,1828.2,1827.9,4.548]
[1746488239314,0.8279,1828.2,1827.9,10.01873991]
[1746488239519,7.7807369,1828.3,1827.9,11.64351122]
[1746488239824,8.5934369,1828.3,1827.9,5.47073991]
[1746488240214,14.06325536,1828.3,1827.9,5.47073991]
[1746488240623,8.5934369,1828.3,1827.9,5.47073991]
[1746488241533,12.24954896,1828.3,1827.9,5.47073991]
[1746488242125,6.77983547,1828.3,1827.8,10.77392524]
[1746488242325,12.24958562,1828.3,1827.9,5.47065372]
[1746488243329,12.24958562,1828.3,1827.9,5.47060763]
[1746488243514,4.46881206,1828.3,1828.0,5.47031269]
[1746488244203,4.46881206,1828.3,1827.8,11.85138713]
[1746488244406,9.93839662,1828.3,1827.9,10.94110486]
[1746488244718,9.93839662,1828.3,1828.0,1.09411049]
[1746488245032,6.28228456,1828.3,1828.0,1.09411049]
[1746488248531,6.28229188,1828.3,1827.9,4.545]
[1746488249341,6.28229188,1828.3,1827.9,10.01571507]
[1746488249634,6.28229188,1828.3,1827.9,5.47071507]
[1746488250413,5.46997699,1828.2,1827.8,10.7739561]
[1746488252599,6.28239568,1828.3,1827.8,10.77399206]
[1746488252850,6.28339216,1828.1,1827.8,5.62239921]
[1746488253630,0.8131,1828.1,1827.8,5.62239921]
[1746488253929,0.8131,1828.1,1827.8,11.09343626]
[1746488255042,5.4704816,1828.0,1827.8,5.62239921]
[1746488255327,6.28346735,1828.1,1827.8,4.545]
[1746488256735,0.8131,1828.1,1827.8,10.01599523]
[1746488258632,5.47058332,1828.0,1827.8,4.545]
[1746488258855,6.2832771,1828.1,1827.8,4.545]
[1746488259405,6.2832771,1828.1,1827.8,10.01605574]
[1746488259617,0.8131,1828.1,1827.8,10.01605574]
[1746488260625,6.28349127,1828.1,1827.8,4.545]
[1746488262740,0.8131,1828.1,1827.8,4.545]
[1746488263043,6.28346557,1828.1,1827.8,4.545]
[1746488264233,5.47055833,1828.0,1827.8,4.545]
[1746488264433,6.28344634,1828.1,1827.8,4.545]
[1746488266067,5.47075879,1827.9,1827.8,4.545]
[1746488266214,6.27565879,1827.9,1827.5,10.01484192]
[1746488266711,5.4710737,1827.8,1827.5,10.01484192]
[1746488266911,0.51180272,1827.7,1827.5,10.01484192]
[1746488267345,0.51180272,1827.6,1827.5,10.01484192]
[1746488267559,0.51180272,1827.6,1827.5,4.543]
[1746488272247,5.98273759,1827.6,1827.2,6.23424652]
[1746488272565,11.45466492,1827.6,1827.2,6.23424652]
[1746488272762,0.51093524,1827.5,1827.2,6.23424652]
[1746488273067,0.51093524,1827.4,1827.3,5.47255513]
[1746488273361,0.51093524,1827.4,1827.3,6.29297908]
[1746488273565,0.51093524,1827.4,1827.3,8.60400249]
[1746488274062,0.51093524,1827.4,1827.3,6.23825513]
[1746488275260,0.51093524,1827.4,1827.3,6.29297038]
[1746488275463,0.51093524,1827.4,1827.3,8.04408652]
[1746488276558,0.51093524,1827.4,1827.3,7.98937127]
[1746488278869,0.51093524,1827.4,1827.3,8.04408655]
[1746488279266,0.51093524,1827.4,1827.3,7.98937127]
[1746488279836,0.51093524,1827.4,1827.3,8.04408649]
[1746488280037,0.51093524,1827.4,1827.3,7.98937127]
[1746488280969,0.51093524,1827.4,1827.3,7.22367127]
[1746488281563,0.51093524,1827.4,1827.1,28.11095279]
[1746488281759,0.51093524,1827.3,1827.1,22.638]
[1746488282140,0.51093524,1827.2,1827.1,22.638]
[1746488282355,0.51093524,1827.2,1827.1,4.544]
[1746488282971,0.51052972,1827.2,1827.1,4.544]
[1746488283168,0.51053485,1827.2,1827.0,5.47343316]
[1746488283376,0.51053485,1827.1,1827.0,5.47343316]
[1746488283571,0.51053485,1827.1,1826.9,10.4077171]
[1746488284073,0.51058049,1827.0,1826.9,10.4077171]
[1746488284274,0.51059031,1827.0,1826.9,10.4077171]
[1746488284475,0.51058882,1827.0,1826.9,10.4077171]
[1746488284679,0.5105567,1827.0,1826.9,10.4077171]
[1746488285470,0.5105567,1827.0,1826.9,10.40772915]
[1746488286176,0.50483398,1827.0,1826.9,12.07844546]
[1746488286363,6.30200953,1827.4,1827.0,5.47341936]
[1746488287075,0.8296,1827.4,1827.1,5.47304551]
[1746488287380,0.7555,1827.6,1827.4,5.47225566]
[1746488287583,3.65611206,1827.7,1827.5,5.4718584]
[1746488289871,3.65611206,1827.7,1827.4,5.47206014]
[1746488290467,3.65611206,1827.7,1827.4,5.47205522]
[1746488290769,3.65611206,1827.7,1827.5,5.47189213]
[1746488291578,4.48451206,1827.7,1827.3,4.542]
[1746488291783,7.78282294,1827.6,1827.3,4.542]
[1746488291982,2.31102341,1827.6,1827.3,10.01451921]
[1746488292275,6.29988962,1827.7,1827.3,10.01451921]
[1746488292591,7.70810229,1827.7,1827.3,10.01451921]
[1746488293026,5.47117385,1827.8,1827.4,6.29165258]
[1746488293377,10.94247255,1827.8,1827.4,5.47205258]
[1746488293577,8.56543453,1827.7,1827.3,10.01453388]
[1746488293813,8.56543453,1827.7,1827.3,15.4868889]
[1746488293980,3.09402341,1827.7,1827.4,5.47224899]
[1746488294180,3.95055126,1827.7,1827.4,5.47224899]
[1746488295027,1.63952785,1827.7,1827.4,5.47224899]
[1746488295184,11.6136697,1827.9,1827.4,5.47202244]
[1746488295513,11.6136697,1827.9,1827.5,5.47191489]
[1746488295714,5.47117651,1827.8,1827.4,5.47214515]
[1746488296011,7.04091583,1827.8,1827.4,5.47214515]
[1746488296508,5.47151384,1827.7,1827.3,10.01438407]
[1746488297019,6.24351384,1827.7,1827.3,10.01438407]
[1746488298411,0.5108947,1827.6,1827.3,10.01438407]
[1746488298716,0.5108947,1827.5,1827.3,10.01438407]
[1746488299014,0.5108947,1827.4,1827.3,11.64506666]
[1746488299723,6.24351384,1827.7,1827.3,11.64506666]
[1746488299906,0.51095017,1827.4,1827.3,10.01438407]
[1746488300110,0.51094242,1827.4,1827.3,10.01438407]
[1746488300425,8.55453725,1827.7,1827.3,10.01438407]
[1746488300629,0.51094251,1827.4,1827.3,4.542]
[1746488300783,0.51091488,1827.4,1827.3,4.542]
[1746488301886,0.7938,1827.5,1827.3,4.542]
[1746488302119,0.51088223,1827.4,1827.3,4.542]
[1746488303386,0.51088223,1827.4,1827.3,10.01455513]
[1746488304388,0.51088223,1827.4,1827.3,4.542]
[1746488304918,0.51088223,1827.4,1827.3,10.01455513]
[1746488305808,0.51088223,1827.4,1827.3,4.542]
[1746488306398,0.51088223,1827.4,1827.3,10.01455513]
[1746488306821,0.7938,1827.5,1827.3,10.01455513]
[1746488307317,0.51074326,1827.4,1827.3,10.01455513]
[1746488309218,0.7938,1827.5,1827.3,10.01455513]
[1746488309413,0.51083639,1827.4,1827.3,10.01455513]
[1746488312897,0.51083639,1827.4,1827.1,6.2323184]
[1746488313100,0.51083639,1827.4,1827.1,10.01499459]
[1746488313504,0.51083639,1827.3,1827.0,10.01529161]
[1746488313997,6.27395253,1827.4,1827.0,10.01529161]
[1746488313998,0.51083639,1827.2,1827.0,10.01529161]
[1746488314326,0.51083639,1827.2,1827.0,4.542]
[1746488314925,0.51083639,1827.1,1827.0,4.542]
[1746488318020,0.51083639,1827.1,1827.0,10.01545374]
[1746488318224,0.51083639,1827.1,1827.0,12.39472457]
[1746488332360,3.65611206,1827.7,1827.4,5.47208797]
[1746488333072,0.51142035,1827.6,1827.4,5.47208797]
[1746488333256,1.33962035,1827.6,1827.4,5.47208797]
[1746488333463,0.51142035,1827.5,1827.4,5.47208797]
[1746488335684,0.51142035,1827.5,1827.3,5.47240092]
[1746488335839,0.51142035,1827.4,1827.3,5.47240092]
[1746488339483,0.51142035,1827.4,1827.3,7.15288138]
[1746488339685,0.51142035,1827.4,1827.3,7.09816129]
[1746488340481,0.51142035,1827.4,1827.3,7.15288139]
[1746488340886,0.51142035,1827.4,1827.3,7.09816129]
[1746488341074,0.51142035,1827.4,1827.3,5.47240092]
[1746488345390,0.51142035,1827.4,1827.2,4.549]
[1746488345687,1.26952035,1827.3,1827.2,4.549]
[1746488349888,1.26952035,1827.3,1826.9,4.9319758]
[1746488350088,6.28286376,1827.1,1826.9,0.3899758]
[1746488350296,0.51142035,1827.0,1826.9,0.3899758]
[1746488351290,0.51125435,1827.0,1826.9,0.3899758]
[1746488354196,0.51090306,1827.0,1826.9,0.3899758]
[1746488354881,0.51090371,1827.0,1826.9,0.3899758]
[1746488355289,0.51090028,1827.0,1826.9,0.3899758]
[1746488357409,0.51090028,1827.0,1826.9,6.45010995]
[1746488358315,0.51090028,1827.0,1826.9,6.50483678]
[1746488358469,0.51090028,1827.0,1826.9,7.32393678]
[1746488359038,3.65611206,1827.4,1827.2,5.47271858]
[1746488359513,0.51083047,1827.3,1827.2,5.47271858]
[1746488360011,0.51083047,1827.3,1827.1,10.01597298]
[1746488360374,0.51083047,1827.2,1827.1,10.01597298]
[1746488360693,0.51083047,1827.2,1827.1,11.5648996]
[1746488360873,0.51083047,1827.2,1827.1,4.543]
[1746488362791,6.73548511,1827.2,1827.1,4.543]
[1746488362998,1.26263047,1827.2,1826.9,5.86367372]
[1746488363412,0.51083047,1827.1,1826.9,5.86367372]
[1746488363583,0.51083047,1827.1,1826.9,0.3899758]
[1746488363912,0.51083047,1827.0,1826.9,0.3899758]
[1746488365019,0.51083047,1827.0,1826.9,5.86372915]
[1746488365609,0.51083047,1827.0,1826.9,7.4517876]
[1746488367683,0.7518,1827.2,1826.9,7.4517876]
[1746488367888,0.7518,1827.2,1827.0,5.47337591]
[1746488368309,0.51061991,1827.1,1827.0,5.47337591]
[1746488383421,0.51061991,1827.1,1826.9,5.86369404]
[1746488383748,0.51061991,1827.0,1826.9,5.86369404]
[1746488384745,0.51061991,1827.0,1826.9,0.3899758]
[1746488384908,1.88270918,1827.0,1826.9,0.3899758]
[1746488385340,1.28431991,1827.0,1826.9,0.3899758]
[1746488387758,0.51061991,1827.0,1826.9,5.86372915]
[1746488393959,1.33771991,1827.0,1826.9,0.3899758]
[1746488395168,6.81117365,1827.0,1826.9,0.3899758]
[1746488395372,0.51061991,1827.0,1826.9,0.3899758]
[1746488396451,1.33781991,1827.0,1826.9,0.3899758]
[1746488396988,6.81127365,1827.0,1826.9,0.3899758]
[1746488397200,7.49302041,1827.0,1826.9,0.3899758]
[1746488399080,1.19236667,1827.0,1826.9,0.3899758]
[1746488399284,0.51061991,1827.0,1826.9,0.3899758]
[1746488400491,1.33781991,1827.0,1826.9,0.3899758]
[1746488400791,6.81127365,1827.0,1826.9,0.3899758]
[1746488405895,9.81127365,1827.0,1826.9,0.3899758]
[1746488406057,10.36127365,1827.0,1826.9,0.3899758]
[1746488406260,25.75146236,1827.0,1826.9,0.3899758]
[1746488406477,23.44043895,1827.0,1826.9,0.3899758]
[1746488407602,22.89043895,1827.0,1826.9,0.3899758]
[1746488407970,19.89043895,1827.0,1826.9,0.3899758]
[1746488411925,20.44043895,1827.0,1826.9,0.3899758]
[1746488412229,23.44043895,1827.0,1826.9,0.3899758]
[1746488413114,22.89043895,1827.0,1826.9,0.3899758]
[1746488415038,23.44043895,1827.0,1826.9,0.3899758]
[1746488415330,25.75146236,1827.0,1826.9,0.3899758]
[1746488416340,27.09655101,1827.0,1826.9,0.3899758]
[1746488417946,29.40757442,1827.0,1826.9,0.3899758]
[1746488418231,27.09655101,1827.0,1826.9,0.3899758]
[1746488418431,29.40757442,1827.0,1826.9,0.3899758]
[1746488418931,27.09655101,1827.0,1826.9,0.3899758]
[1746488419254,5.47675119,1825.9,1825.8,0.7537]
[1746488419553,2.31102341,1826.3,1825.8,0.7537]
[1746488419755,7.7861135,1826.5,1826.0,6.2299315]
[1746488419915,5.47525358,1826.4,1826.1,0.62299315]
[1746488420251,5.47525358,1826.4,1826.0,0.7537]
[1746488420252,0.50976794,1826.3,1826.0,0.7537]
[1746488420432,0.50976794,1826.3,1826.1,5.47604562]
[1746488420639,0.50976794,1826.2,1826.1,0.7537]
[1746488421227,0.50998074,1826.2,1825.9,6.23034835]
[1746488421548,0.50998074,1826.2,1825.9,0.7537]
[1746488421851,0.50998074,1826.1,1825.9,0.7537]
[1746488422030,0.50998074,1826.1,1825.9,6.23044202]
[1746488422225,5.98630116,1826.1,1825.9,0.7537]
[1746488422629,0.50998074,1826.0,1825.9,0.7537]
[1746488423252,1.92831086,1826.0,1825.6,5.3177]
[1746488423426,2.31102341,1825.9,1825.6,5.3177]
[1746488423627,1.10861086,1826.0,1825.6,10.79515427]
[1746488423924,0.50998074,1825.9,1825.6,10.79515427]
[1746488424369,0.50998074,1825.8,1825.6,10.79515427]
[1746488424747,0.50998074,1825.8,1825.6,10.79534777]
[1746488424939,0.50998074,1825.7,1825.6,5.3177]
[1746488429970,0.50998074,1825.7,1825.5,0.7868]
[1746488430172,0.50998074,1825.6,1825.5,0.7868]
[1746488430667,0.50998074,1825.6,1825.5,6.26475124]
[1746488431449,5.47675242,1825.9,1825.5,6.26475124]
[1746488431649,6.57207656,1825.9,1825.5,6.26475124]
[1746488431972,0.50844944,1825.8,1825.5,6.26475124]
[1746488432575,0.50844944,1825.7,1825.5,6.26475124]
[1746488433076,0.50844944,1825.8,1825.5,6.26475124]
[1746488433575,0.50844944,1825.7,1825.5,6.26475124]
[1746488433871,0.50844944,1825.6,1825.5,6.26475124]
[1746488436361,0.50844944,1825.6,1825.4,10.79829082]
[1746488436671,0.50844944,1825.6,1825.4,16.27635473]
[1746488436880,0.00619395,1825.7,1825.4,16.27635473]
[1746488437187,5.48356067,1825.7,1825.4,5.3202]
[1746488437391,6.11513766,1825.7,1825.4,5.3202]
[1746488437545,6.11513766,1825.7,1825.4,0.7552]
[1746488437745,6.11513766,1825.7,1825.3,5.47851185]
[1746488437746,5.47767955,1825.6,1825.3,0.7587]
[1746488438175,6.11513766,1825.7,1825.3,6.23724198]
[1746488438371,1.11984354,1825.6,1825.3,6.23724198]
[1746488438794,0.50832977,1825.5,1825.3,6.23724198]
[1746488439086,0.50832977,1825.5,1825.4,5.47825134]
[1746488439288,0.50832977,1825.5,1825.3,6.23708424]
[1746488439605,0.50832977,1825.5,1825.4,5.47825134]
[1746488439892,0.50832977,1825.6,1825.5,5.47795124]
[1746488450022,0.50832977,1825.6,1825.5,6.33422685]
[1746488450327,0.50832977,1825.6,1825.5,6.27945124]
[1746488450698,0.00619395,1825.7,1825.6,6.29035118]
[1746488450899,0.00619395,1825.7,1825.6,12.15137459]
[1746488450900,0.51734521,1825.7,1825.6,12.15137459]
[1746488451112,0.00619395,1825.7,1825.6,14.52730717]
[1746488454128,0.00619395,1825.7,1825.6,20.65730717]
[1746488456036,0.00619395,1825.7,1825.6,18.20664363]
[1746488456350,0.00619395,1825.7,1825.6,20.10730717]
[1746488460220,0.00619395,1825.7,1825.6,13.97730717]
[1746488462656,0.00619395,1825.7,1825.6,11.66628376]
[1746488462862,0.00619395,1825.7,1825.6,10.08665118]
[1746488463158,0.00619395,1825.7,1825.6,10.14141906]
[1746488463672,0.51650614,1825.7,1825.6,10.14141906]
[1746488464162,0.51650614,1825.7,1825.6,10.08665118]
[1746488464349,0.51650614,1825.7,1825.6,10.1414195]
[1746488465164,0.00619395,1825.7,1825.6,12.50319825]
[1746488466263,0.00619395,1825.7,1825.6,10.86105118]
[1746488467572,0.00619395,1825.7,1825.6,10.08665118]
[1746488468143,0.51669197,1825.7,1825.6,10.08665118]
[1746488470667,0.51669197,1825.7,1825.6,10.14141955]
[1746488470875,0.51669197,1825.7,1825.6,10.08665118]
[1746488471878,0.51669197,1825.7,1825.6,10.14141956]
[1746488474656,0.51669197,1825.7,1825.6,10.08665118]
[1746488474993,1.30299197,1825.7,1825.6,5.47765118]
[1746488476992,1.30299197,1825.7,1825.5,10.07395124]
[1746488477152,1.30299197,1825.7,1825.5,15.55169703]
[1746488477355,1.30299197,1825.7,1825.5,10.07374579]
[1746488477356,0.51049802,1825.6,1825.5,10.07374579]
[1746488477593,0.51049802,1825.6,1825.5,10.90621878]
[1746488477997,0.51049802,1825.6,1825.5,12.77575598]
[1746488478183,0.51049802,1825.6,1825.5,12.72098299]
[1746488480562,0.00619395,1825.7,1825.6,5.47765118]
[1746488481095,0.51778779,1825.7,1825.6,5.47765118]
[1746488485995,0.51778779,1825.7,1825.6,7.78867459]
[1746488486306,0.51778779,1825.7,1825.6,9.83964035]
[1746488487326,0.00619395,1825.7,1825.6,9.83964035]
[1746488488229,0.51824883,1825.7,1825.6,9.83964035]
[1746488488832,0.00619395,1825.7,1825.6,9.83964035]
[1746488489793,0.51822976,1825.7,1825.6,9.83964035]
[1746488491034,0.00619395,1825.7,1825.6,9.83964035]
[1746488491205,0.51822575,1825.7,1825.6,9.83964035]
[1746488491618,0.51822575,1825.7,1825.6,14.43564035]
[1746488492318,0.51822575,1825.7,1825.6,15.26054035]
[1746488492935,0.00619395,1825.7,1825.6,15.26054035]
[1746488494232,0.51810438,1825.7,1825.6,15.26054035]
[1746488494532,0.51810438,1825.7,1825.6,12.94951694]
[1746488495432,0.51810438,1825.7,1825.6,10.07365118]
[1746488495929,0.51810438,1825.7,1825.6,12.4394414]
[1746488496134,0.51810438,1825.7,1825.6,12.38467459]
[1746488496532,0.00619395,1825.7,1825.6,12.38467459]
[1746488500366,0.51778799,1825.7,1825.6,12.38467459]
[1746488500565,0.51778799,1825.7,1825.6,14.43875035]
[1746488500893,0.00619395,1825.7,1825.6,14.43875035]
[1746488502571,0.51776711,1825.7,1825.6,14.43875035]
[1746488503083,0.00619395,1825.7,1825.6,14.43875035]
[1746488507261,0.00619395,1825.7,1825.6,12.12772694]
[1746488508088,0.51804536,1825.7,1825.6,12.12772694]
[1746488512205,0.51804536,1825.7,1825.6,10.07365118]
[1746488513119,0.51804536,1825.7,1825.6,10.12841712]
[1746488513403,0.51804536,1825.7,1825.6,10.94731712]
[1746488513901,0.51804536,1825.7,1825.6,10.89255118]
[1746488514610,0.51804536,1825.7,1825.6,10.94731404]
[1746488514908,0.51804536,1825.7,1825.6,12.77677374]
[1746488515108,0.51804536,1825.7,1825.6,12.72201088]
[1746488517513,0.51804536,1825.7,1825.6,17.99973429]
[1746488517876,0.00619395,1825.7,1825.6,17.99973429]
[1746488518500,0.00619395,1825.7,1825.6,18.54973429]
[1746488529739,0.00619395,1825.7,1825.6,37.23903229]
[1746488530038,0.00619395,1825.7,1825.6,35.48245929]
[1746488530402,0.00619395,1825.7,1825.6,34.98994029]
[1746488530918,0.00619395,1825.7,1825.6,18.54973429]
[1746488531242,0.00619395,1825.7,1825.6,37.02389729]
[1746488535446,0.00619395,1825.7,1825.6,45.96149847]
[1746488535853,0.791,1826.7,1826.6,5.47454633]
[1746488536145,1.26937054,1826.7,1826.6,5.47454633]
[1746488543865,0.7675,1826.6,1826.3,5.47538847]
[1746488544067,0.7675,1826.6,1826.4,5.47521639]
[1746488544229,1.27877054,1826.5,1826.4,10.02621639]
[1746488546663,1.27877054,1826.5,1826.4,5.47521639]
[1746488547029,1.27877054,1826.5,1826.4,10.02621639]
[1746488548972,1.27877054,1826.5,1826.4,5.47521639]
[1746488549170,1.27877054,1826.5,1826.4,10.02621639]
[1746488550469,1.27877054,1826.5,1826.3,5.47538847]
[1746488550470,1.27877054,1826.5,1826.3,5.47552271]
[1746488550658,0.8136,1826.4,1826.3,4.551]
[1746488550844,0.51127054,1826.4,1826.3,4.551]
[1746488551044,1.32487054,1826.4,1826.3,4.551]
[1746488551773,1.32487054,1826.4,1826.3,10.02655166]
[1746488552669,1.32487054,1826.4,1826.3,5.47555166]
[1746488556472,0.51127054,1826.4,1826.3,5.47555166]
[1746488556677,0.51127054,1826.4,1826.3,5.5303057]
[1746488558837,0.51127054,1826.4,1826.3,5.47555166]
[1746488565388,0.51127054,1826.4,1826.2,10.02670402]
[1746488565682,0.51127054,1826.4,1826.2,10.02662741]
[1746488565885,0.51127054,1826.4,1826.3,5.47555166]
[1746488566249,0.51127054,1826.4,1826.3,5.53030547]
[1746488566493,0.51127054,1826.4,1826.3,5.47555166]
[1746488569686,0.51127054,1826.4,1826.3,5.53030128]
[1746488569871,0.51127054,1826.4,1826.3,5.47555166]
[1746488573294,0.51127054,1826.4,1826.3,10.02555166]
[1746488575517,0.51127054,1826.4,1826.3,4.55]